bitfinex/quotes_SOLUSD_20250701
["timestamp","ask_amount","ask_price","bid_price","bid_amount"]
[1751390630662,0.2,148.57,148.56,58.67766899]
[1751390637557,0.2,148.57,148.56,77.46947942]
[1751390637754,0.2,148.57,148.56,77.75380256]
[1751390639757,0.2,148.57,148.56,77.46947942]
[1751390641074,0.2,148.57,148.56,58.67766899]
[1751390641477,0.2,148.57,148.56,77.46947942]
[1751390648672,0.3,148.57,148.56,77.46947942]
[1751390649662,0.3,148.57,148.56,72.13181043]
[1751390649864,0.3,148.57,148.56,77.46947942]
[1751390652489,0.3,148.57,148.56,58.67766899]
[1751390654597,0.3,148.57,148.56,77.46947942]
[1751390656579,0.3,148.57,148.56,77.50947942]
[1751390657075,0.3,148.57,148.56,31.33766899]
[1751390657292,0.3,148.57,148.56,58.71766899]
[1751390658695,0.3,148.57,148.56,31.33766899]
[1751390658876,0.3,148.57,148.56,58.71766899]
[1751390660280,0.3,148.57,148.56,53.38]
[1751390660594,0.3,148.57,148.56,58.71766899]
[1751390664591,0.3,148.57,148.56,53.38]
[1751390664982,0.3,148.57,148.56,58.71766899]
[1751390669485,0.3,148.57,148.56,77.50947942]
[1751390672218,0.3,148.57,148.56,77.79380256]
[1751390674311,0.3,148.57,148.56,72.45613357]
[1751390674617,0.3,148.57,148.56,77.50947942]
[1751390675189,0.3,148.57,148.56,77.79380256]
[1751390678813,0.3,148.57,148.56,84.52508958]
[1751390679203,0.1,148.63,148.6,26.0]
[1751390679397,0.1,148.63,148.62,5.33766899]
[1751390680096,0.1,148.63,148.61,27.54]
[1751390680408,0.1,148.63,148.61,32.87766899]
[1751390683016,0.1,148.63,148.61,27.54]
[1751390683208,0.1,148.63,148.61,32.87766899]
[1751390683398,0.1,148.63,148.62,5.33766899]
[1751390684921,0.1,148.63,148.61,27.54]
[1751390685094,0.1,148.63,148.62,5.33766899]
[1751390685820,0.1,148.63,148.61,32.87766899]
[1751390686194,0.1,148.63,148.62,5.33766899]
[1751390687320,0.1,148.63,148.61,32.87766899]
[1751390688214,0.1,148.63,148.61,27.54]
[1751390688522,0.1,148.63,148.61,32.87766899]
[1751390689822,0.1,148.63,148.61,30.95224466]
[1751390690305,0.1,148.63,148.61,27.54]
[1751390690505,0.1,148.63,148.61,30.95224466]
[1751390690807,0.1,148.63,148.62,3.41224466]
[1751390691713,0.1,148.63,148.61,27.54]
[1751390692024,0.1,148.63,148.61,30.95224466]
[1751390692321,0.1,148.63,148.62,3.41224466]
[1751390697432,0.1,148.63,148.6,53.52]
[1751390697727,0.1,148.63,148.62,3.41224466]
[1751390698725,0.1,148.63,148.6,53.52]
[1751390698935,0.1,148.63,148.62,3.41224466]
[1751390699425,0.1,148.63,148.6,53.52]
[1751390699629,0.1,148.63,148.62,3.41224466]
[1751390700014,0.1,148.63,148.61,3.41224466]
[1751390700224,0.1,148.63,148.6,53.52]
[1751390700416,0.1,148.63,148.61,3.41224466]
[1751390700936,0.1,148.63,148.6,53.52]
[1751390701118,0.1,148.63,148.61,3.41224466]
[1751390702348,0.1,148.63,148.6,53.52]
[1751390702708,0.1,148.63,148.62,3.41224466]
[1751390704112,0.1,148.63,148.6,53.52]
[1751390704308,0.1,148.63,148.62,3.41224466]
[1751390705008,0.1,148.63,148.61,3.41224466]
[1751390705432,0.1,148.63,148.6,53.52]
[1751390705635,0.1,148.63,148.61,3.41224466]
[1751390707442,0.1,148.63,148.62,3.41224466]
[1751390710723,1.7148,148.63,148.57,3.41224466]
[1751390711043,5.12704466,148.63,148.59,3.41224466]
[1751390711217,0.1,148.63,148.61,3.41224466]
[1751390711418,0.1,148.63,148.62,3.41224466]
[1751390717322,0.1,148.63,148.6,18.79181043]
[1751390717522,0.1,148.63,148.62,3.41224466]
[1751390721141,0.1,148.63,148.6,18.79181043]
[1751390721331,0.1,148.63,148.62,3.41224466]
[1751390729876,0.1,148.63,148.6,3.41224466]
[1751390730254,0.1,148.63,148.62,3.41224466]
[1751390730756,0.1,148.63,148.6,18.79181043]
[1751390730955,0.1,148.63,148.62,3.41224466]
[1751390734074,0.1,148.63,148.6,18.79181043]
[1751390734277,0.1,148.63,148.61,3.41224466]
[1751390735153,0.1,148.63,148.62,3.41224466]
[1751390739485,0.1,148.63,148.61,26.0]
[1751390739650,0.1,148.63,148.62,3.41224466]
[1751390742559,0.1,148.63,148.62,22.20405509]
[1751390742883,0.1,148.63,148.62,18.79181043]
[1751390743085,0.1,148.63,148.62,22.20405509]
[1751390746687,0.1,148.63,148.62,22.48837823]
[1751390753116,1.4453694,148.67,148.65,26.0]
[1751390753295,1.4453694,148.67,148.66,23.16105413]
[1751390754175,1.4453694,148.67,148.66,36.81003277]
[1751390754492,1.4453694,148.67,148.66,44.48593277]
[1751390755180,1.4453694,148.67,148.66,27.42470947]
[1751390755388,1.4453694,148.67,148.66,44.48593277]
[1751390756083,1.4453694,148.67,148.66,30.83695413]
[1751390757295,1.4453694,148.67,148.66,23.16105413]
[1751390757515,1.4453694,148.67,148.66,18.79181043]
[1751390757696,1.4453694,148.67,148.66,3.41224466]
[1751390758002,1.4453694,148.67,148.66,49.48189352]
[1751390758299,1.4453694,148.67,148.66,49.62405509]
[1751390758501,1.4453694,148.67,148.66,49.90837823]
[1751390763596,1.4453694,148.67,148.66,49.62405509]
[1751390763780,1.4453694,148.67,148.66,30.81224466]
[1751390765195,1.51415018,148.67,148.66,30.81224466]
[1751390765803,1.51415018,148.67,148.66,32.72703867]
[1751390766098,1.51415018,148.67,148.66,5.32703867]
[1751390766399,1.51415018,148.67,148.66,32.72703867]
[1751390772304,1.51415018,148.67,148.66,5.32703867]
[1751390772607,1.51415018,148.67,148.66,32.70703867]
[1751390772785,1.51415018,148.67,148.66,27.38]
[1751390773102,1.51415018,148.67,148.65,33.1]
[1751390773302,1.51415018,148.67,148.66,27.38]
[1751390773482,1.51415018,148.67,148.66,32.70703867]
[1751390774409,1.51415018,148.67,148.66,27.38]
[1751390774590,1.51415018,148.67,148.66,32.70703867]
[1751390774901,1.51415018,148.67,148.66,5.32703867]
[1751390778805,1.51415018,148.67,148.65,34.48]
[1751390779107,1.51415018,148.67,148.66,5.32703867]
[1751390780514,1.51415018,148.67,148.65,7.1]
[1751390782212,6.84118885,148.67,148.65,7.1]
[1751390783200,6.94118885,148.67,148.65,7.1]
[1751390783419,6.94118885,148.67,148.63,5.52703867]
[1751390783420,5.32703867,148.66,148.63,0.2]
[1751390783588,5.32703867,148.64,148.63,0.2]
[1751390789103,6.91423867,148.64,148.63,0.2]
[1751390790664,25.7060491,148.64,148.63,0.2]
[1751390794012,26.0,148.6,148.57,0.2]
[1751390794208,5.32703867,148.58,148.57,0.2]
[1751390796245,30.6234491,148.58,148.57,0.2]
[1751390799648,30.6234491,148.58,148.56,0.2]
[1751390799856,26.0,148.54,148.53,0.2]
[1751390800149,36.65407734,148.54,148.53,0.2]
[1751390800336,55.44588777,148.54,148.53,0.2]
[1751390800723,57.04498777,148.54,148.53,0.2]
[1751390800956,18.79181043,148.53,148.52,0.2]
[1751390801247,32.3607,148.53,148.52,0.2]
[1751390801420,37.68773867,148.53,148.52,0.2]
[1751390801848,31.32703867,148.53,148.52,0.2]
[1751390803646,50.1188491,148.53,148.52,0.2]
[1751390810975,18.79181043,148.52,148.48,0.2]
[1751390811254,31.32703867,148.49,148.48,0.2]
[1751390811631,26.0,148.49,148.48,0.2]
[1751390811831,31.32703867,148.49,148.48,0.2]
[1751390812045,5.32703867,148.5,148.48,0.2]
[1751390812255,5.32703867,148.51,148.48,0.2]
[1751390812664,26.0,148.52,148.48,0.2]
[1751390812964,5.32703867,148.51,148.48,0.2]
[1751390814859,31.32703867,148.52,148.48,5.52703867]
[1751390815062,26.0,148.52,148.48,0.2]
[1751390815359,26.0,148.52,148.49,5.32703867]
[1751390815540,31.32703867,148.52,148.48,5.52703867]
[1751390815736,26.0,148.52,148.49,5.32703867]
[1751390816463,5.39581945,148.54,148.5,5.32703867]
[1751390817862,5.39581945,148.54,148.49,5.32703867]
[1751390818358,5.39581945,148.54,148.5,5.32703867]
[1751390818551,0.06878078,148.54,148.51,5.32703867]
[1751390819143,0.06878078,148.54,148.52,5.32703867]
[1751390819348,0.16878078,148.54,148.52,5.32703867]
[1751390820545,0.16878078,148.54,148.51,5.32703867]
[1751390821171,5.49581945,148.54,148.5,0.2]
[1751390821384,31.32703867,148.53,148.5,0.2]
[1751390821668,5.32703867,148.52,148.5,0.2]
[1751390822563,26.0,148.53,148.5,0.2]
[1751390822564,5.32703867,148.53,148.5,0.2]
[1751390823249,5.32703867,148.52,148.5,0.2]
[1751390823755,0.16878078,148.54,148.5,0.2]
[1751390823756,0.31094235,148.54,148.5,0.2]
[1751390824059,5.32703867,148.52,148.5,0.2]
[1751390824471,5.32703867,148.51,148.5,0.2]
[1751390828371,31.32703867,148.52,148.5,0.2]
[1751390830483,5.32703867,148.51,148.5,0.2]
[1751390835590,24.1188491,148.51,148.5,0.2]
[1751390836493,29.51997545,148.51,148.5,0.2]
[1751390839492,18.79181043,148.51,148.5,0.2]
[1751390839664,24.1188491,148.51,148.5,0.2]
[1751390839869,5.32703867,148.51,148.5,0.2]
[1751390843887,31.32703867,148.51,148.5,0.2]
[1751390844082,50.1188491,148.51,148.5,0.2]
[1751390847284,26.0,148.47,148.46,0.2]
[1751390847486,55.44588777,148.47,148.46,0.2]
[1751390847784,75.68588777,148.47,148.45,0.2]
[1751390848088,5.32703867,148.46,148.45,0.2]
[1751390850193,0.14216157,148.46,148.45,0.2]
[1751390850392,5.32703867,148.46,148.45,0.2]
[1751390854689,24.1188491,148.46,148.45,0.2]
[1751390857309,30.85467019,148.46,148.45,0.2]
[1751390857479,30.85467019,148.46,148.41,0.2]
[1751390857480,24.1188491,148.45,148.41,0.2]
[1751390859505,5.46920024,148.45,148.41,0.2]
[1751390859811,24.1188491,148.45,148.41,0.2]
[1751390860186,30.85512394,148.45,148.41,0.2]
[1751390862107,44.64964886,148.42,148.41,0.2]
[1751390862293,49.97668753,148.42,148.41,0.2]
[1751390863692,50.1188491,148.42,148.41,0.2]
[1751390864203,44.64964886,148.39,148.38,0.2]
[1751390864411,49.97668753,148.39,148.38,0.2]
[1751390864580,23.97668753,148.39,148.38,0.2]
[1751390865409,27.3908119,148.39,148.38,0.2]
[1751390872698,8.74116304,148.39,148.38,0.2]
[1751390872894,34.74116304,148.39,148.38,0.2]
[1751390873130,8.74116304,148.39,148.38,0.2]
[1751390878524,29.41412437,148.39,148.38,0.2]
[1751390878728,34.74116304,148.39,148.38,0.2]
[1751390882399,53.3908119,148.39,148.38,0.2]
[1751390882605,53.3908119,148.39,148.35,0.2]
[1751390882606,26.0,148.36,148.35,0.2]
[1751390882827,31.32703867,148.36,148.35,0.2]
[1751390883933,36.6398816,148.36,148.35,0.2]
[1751390884224,26.0,148.36,148.35,0.2]
[1751390884423,8.74116304,148.39,148.35,5.52703867]
[1751390884615,3.41412437,148.39,148.35,7.14673867]
[1751390884925,26.0,148.37,148.35,7.14673867]
[1751390886925,26.0,148.38,148.36,5.32703867]
[1751390887124,26.0,148.38,148.37,5.32703867]
[1751390887431,26.0,148.39,148.37,5.32703867]
[1751390887604,0.06878078,148.4,148.38,5.32703867]
[1751390888008,26.0,148.39,148.38,5.32703867]
[1751390888314,0.06878078,148.4,148.38,5.32703867]
[1751390888513,0.06878078,148.4,148.39,5.32703867]
[1751390888716,26.06878078,148.4,148.39,5.32703867]
[1751390890226,0.06878078,148.4,148.39,11.90263867]
[1751390891822,0.06878078,148.4,148.39,6.5756]
[1751390891999,0.06878078,148.4,148.39,11.90263867]
[1751390900906,0.06878078,148.4,148.39,6.5756]
[1751390901107,0.06878078,148.4,148.39,11.90263867]
[1751390903831,0.06878078,148.4,148.39,6.5756]
[1751390905229,0.06878078,148.4,148.38,5.52703867]
[1751390906636,0.06878078,148.4,148.39,5.32703867]
[1751390909739,0.06878078,148.4,148.38,5.52703867]
[1751390909910,0.06878078,148.4,148.39,5.32703867]
[1751390910637,0.06878078,148.4,148.39,11.56540024]
[1751390910948,0.06878078,148.4,148.39,13.21210024]
[1751390913619,0.1,148.41,148.39,13.21210024]
[1751390913821,0.1,148.41,148.4,5.32703867]
[1751390915749,0.1,148.41,148.39,7.88506157]
[1751390915955,0.1,148.41,148.4,5.32703867]
[1751390922039,0.1,148.41,148.4,24.40317224]
[1751390922247,0.1,148.41,148.4,29.73021091]
[1751390927944,0.1,148.41,148.4,24.40317224]
[1751390928522,0.1,148.41,148.4,19.07613357]
[1751390928725,0.1,148.41,148.4,24.40317224]
[1751390930549,0.1,148.41,148.39,14.8029]
[1751390930734,0.1,148.41,148.39,18.48323867]
[1751390930937,0.1,148.41,148.39,12.38703867]
[1751390931135,0.1,148.41,148.39,7.06]
[1751390931342,0.1,148.41,148.38,5.52703867]
[1751390931543,0.1,148.41,148.39,5.32703867]
[1751390937758,0.1,148.41,148.38,0.2]
[1751390938067,0.1,148.41,148.39,5.32703867]
[1751390938958,0.1,148.41,148.38,5.52703867]
[1751390943450,0.1,148.41,148.39,5.32703867]
[1751390952942,0.1,148.41,148.38,0.2]
[1751390953147,5.42703867,148.41,148.38,0.2]
[1751390959963,0.06878078,148.39,148.38,0.2]
[1751390960280,5.39581945,148.39,148.38,0.2]
[1751390961449,26.0,148.36,148.35,0.2]
[1751390961654,31.32703867,148.36,148.32,0.2]
[1751390961854,5.32703867,148.33,148.32,0.2]
[1751390962355,12.29457734,148.33,148.31,0.2]
[1751390962567,5.32703867,148.32,148.31,0.2]
[1751390962874,10.79823486,148.32,148.31,0.2]
[1751390963174,5.32703867,148.32,148.31,0.2]
[1751390964489,26.0,148.3,148.25,0.2]
[1751390964697,5.32703867,148.27,148.25,0.2]
[1751390967792,5.32703867,148.26,148.25,0.2]
[1751390970170,31.32703867,148.26,148.25,0.2]
[1751390972078,5.32703867,148.26,148.25,0.2]
[1751390973094,5.32703867,148.27,148.25,0.2]
[1751390973871,5.32703867,148.26,148.25,0.2]
[1751390978386,0.06878078,148.27,148.25,0.2]
[1751390978587,0.06878078,148.27,148.25,5.52703867]
[1751390980672,0.06878078,148.27,148.26,5.32703867]
[1751390981711,0.06878078,148.27,148.26,24.40317224]
[1751390990288,0.06878078,148.27,148.26,5.32703867]
[1751390991395,0.06878078,148.27,148.25,0.2]
[1751390992797,0.06878078,148.27,148.25,5.52703867]
[1751390993698,0.06878078,148.27,148.25,0.2]
[1751390995800,4.70627667,148.28,148.25,0.2]
[1751390997019,5.32703867,148.29,148.25,5.52703867]
[1751390997619,5.32703867,148.3,148.26,5.32703867]
[1751390998298,31.32703867,148.31,148.27,5.32703867]
[1751390999222,31.32703867,148.31,148.26,5.32703867]
[1751391000424,5.32703867,148.3,148.26,5.32703867]
[1751391001924,5.32703867,148.29,148.25,5.66920024]
[1751391004123,5.32703867,148.29,148.25,0.34216157]
[1751391004427,5.32703867,148.29,148.25,5.66920024]
[1751391004926,26.0,148.31,148.26,5.32703867]
[1751391004927,5.32703867,148.3,148.26,5.32703867]
[1751391005306,0.2,148.29,148.26,5.32703867]
[1751391007028,0.2,148.29,148.27,5.32703867]
[1751391007532,0.2,148.29,148.28,5.32703867]
[1751391007703,0.2,148.29,148.28,5.46920024]
[1751391011628,0.2,148.29,148.26,0.28432314]
[1751391011827,0.2,148.29,148.26,5.32703867]
[1751391013840,0.2,148.29,148.27,5.32703867]
[1751391019749,0.2,148.29,148.26,0.14216157]
[1751391020040,0.2,148.29,148.27,5.32703867]
[1751391020551,0.2,148.29,148.28,5.32703867]
[1751391021836,0.2,148.29,148.27,5.42703867]
[1751391026834,0.2,148.29,148.27,0.1]
[1751391029662,5.52703867,148.29,148.27,0.1]
[1751391036651,5.32703867,148.28,148.27,0.1]
[1751391041844,3.42922104,148.28,148.27,0.1]
[1751391042342,3.62922104,148.29,148.27,0.1]
[1751391042743,3.42922104,148.28,148.27,0.1]
[1751391043658,0.2,148.29,148.27,0.1]
[1751391043860,3.42922104,148.28,148.27,0.1]
[1751391046758,0.2,148.29,148.27,0.1]
[1751391046933,3.42922104,148.28,148.27,0.1]
[1751391050466,3.62922104,148.29,148.27,0.1]
[1751391053081,3.42922104,148.28,148.27,0.1]
[1751391055259,49.6126699,148.28,148.27,0.1]
[1751391057556,30.96302104,148.28,148.27,0.1]
[1751391057771,29.42922104,148.28,148.27,0.1]
[1751391058172,26.0,148.28,148.27,0.1]
[1751391058455,29.42922104,148.28,148.27,0.1]
[1751391059686,48.0788699,148.28,148.27,0.1]
[1751391059871,50.01123082,148.28,148.27,0.1]
[1751391061792,44.64964886,148.28,148.27,0.1]
[1751391061961,31.36158196,148.28,148.27,0.1]
[1751391063490,50.01123082,148.28,148.27,0.1]
[1751391066269,18.64964886,148.27,148.21,0.1]
[1751391066577,5.36158196,148.22,148.21,0.1]
[1751391066776,31.36158196,148.23,148.21,0.1]
[1751391069267,5.36158196,148.22,148.21,0.1]
[1751391069586,31.36158196,148.23,148.21,0.1]
[1751391071059,5.36158196,148.22,148.21,0.1]
[1751391074387,31.36158196,148.22,148.21,0.1]
[1751391080598,26.0,148.22,148.21,0.1]
[1751391080784,31.36158196,148.22,148.21,0.1]
[1751391082488,18.64964886,148.26,148.21,0.1]
[1751391082670,5.36158196,148.24,148.21,0.1]
[1751391082871,18.64964886,148.28,148.21,0.1]
[1751391083083,5.36158196,148.24,148.21,0.1]
[1751391084410,26.0,148.25,148.21,0.1]
[1751391084609,5.36158196,148.24,148.21,0.1]
[1751391087306,0.2,148.25,148.21,0.1]
[1751391087511,5.36158196,148.23,148.21,0.1]
[1751391087899,5.36158196,148.24,148.21,0.1]
[1751391088098,5.36158196,148.23,148.21,0.1]
[1751391090811,31.36158196,148.24,148.21,0.1]
[1751391091819,29.4314404,148.24,148.21,0.1]
[1751391092998,26.0,148.24,148.21,0.1]
[1751391093412,3.6314404,148.25,148.21,0.1]
[1751391093610,3.6314404,148.25,148.21,3.5314404]
[1751391093914,3.6314404,148.25,148.21,0.1]
[1751391094097,3.4314404,148.24,148.21,0.1]
[1751391096120,5.36136099,148.24,148.21,0.1]
[1751391099623,5.36136099,148.23,148.21,0.1]
[1751391099925,0.2,148.25,148.21,0.1]
[1751391099926,5.36136099,148.22,148.21,0.1]
[1751391103195,31.36136099,148.22,148.21,0.1]
[1751391109533,50.01100985,148.22,148.2,0.2]
[1751391109715,5.36136099,148.21,148.2,0.2]
[1751391110235,5.20222451,148.21,148.2,0.2]
[1751391112936,23.85187337,148.21,148.2,0.2]
[1751391119308,18.64964886,148.21,148.2,0.2]
[1751391119514,24.01100985,148.21,148.2,0.2]
[1751391119934,22.084184,148.21,148.2,0.2]
[1751391127743,18.64964886,148.21,148.2,0.2]
[1751391128042,22.084184,148.21,148.2,0.2]
[1751391134252,29.43453514,148.21,148.2,0.2]
[1751391134951,26.0,148.21,148.2,0.2]
[1751391135149,7.26,148.24,148.2,0.2]
[1751391135335,0.2,148.21,148.2,0.2]
[1751391135731,0.2,148.21,148.2,3.63453514]
[1751391137644,0.2,148.21,148.2,0.2]
[1751391137835,0.2,148.21,148.2,3.63453514]
[1751391138030,0.2,148.21,148.2,5.56112851]
[1751391139550,0.2,148.21,148.2,5.70329008]
[1751391143855,0.2,148.21,148.2,0.2]
[1751391144935,0.2,148.21,148.2,5.56112851]
[1751391145862,0.2,148.21,148.2,0.2]
[1751391146036,0.2,148.21,148.2,5.56112851]
[1751391149775,0.2,148.21,148.2,5.98761322]
[1751391151042,0.2,148.21,148.2,24.63726208]
[1751391155770,0.2,148.21,148.2,5.70329008]
[1751391155995,0.2,148.21,148.2,0.2]
[1751391160183,0.2,148.21,148.2,5.56112851]
[1751391161307,0.2,148.21,148.2,0.2]
[1751391161308,5.56112851,148.21,148.2,0.2]
[1751391166099,0.2,148.21,148.2,0.2]
[1751391169266,5.56112851,148.21,148.2,0.2]
[1751391180903,0.2,148.21,148.2,0.2]
[1751391185223,5.56112851,148.21,148.2,0.2]
[1751391189611,31.56112851,148.21,148.2,0.2]
[1751391189927,29.57190588,148.21,148.2,0.2]
[1751391190433,24.21077737,148.21,148.2,0.2]
[1751391191428,29.57190588,148.21,148.2,0.2]
[1751391191726,24.21077737,148.21,148.2,0.2]
[1751391196330,29.57190588,148.21,148.2,0.2]
[1751391196715,18.64964886,148.2,148.19,0.2]
[1751391196924,29.37190588,148.2,148.19,0.2]
[1751391199631,26.0,148.17,148.1,7.8438]
[1751391199938,5.36112851,148.12,148.1,7.8438]
[1751391201331,5.36112851,148.12,148.07,5.36112851]
[1751391201532,5.36112851,148.12,148.08,0.14216157]
[1751391201718,5.36112851,148.12,148.1,0.1]
[1751391202739,5.36112851,148.11,148.1,0.1]
[1751391208637,31.36112851,148.11,148.1,0.1]
[1751391210849,26.0,148.09,148.04,0.1]
[1751391211087,5.36112851,148.05,148.04,0.1]
[1751391211655,26.0,148.08,148.04,0.1]
[1751391211844,5.36112851,148.06,148.04,0.1]
[1751391212149,5.36112851,148.09,148.04,8.2724]
[1751391212340,5.36112851,148.08,148.04,13.63352851]
[1751391213435,31.36112851,148.09,148.05,5.36112851]
[1751391214738,31.36112851,148.09,148.04,13.63352851]
[1751391215052,31.36112851,148.09,148.05,5.36112851]
[1751391215634,5.36112851,148.08,148.04,13.63352851]
[1751391216343,26.0,148.09,148.04,13.63352851]
[1751391216552,5.36112851,148.08,148.04,13.63352851]
[1751391217943,5.36112851,148.07,148.04,8.2724]
[1751391219544,5.36112851,148.06,148.04,0.1]
[1751391220152,5.36112851,148.05,148.04,0.1]
[1751391222463,10.72225702,148.05,148.04,0.1]
[1751391222762,10.72225702,148.05,147.98,0.1]
[1751391223065,5.36112851,147.99,147.98,0.1]
[1751391224258,5.36112851,148.0,147.98,0.1]
[1751391224951,5.36112851,147.99,147.98,0.1]
[1751391225560,26.0,148.02,147.98,0.1]
[1751391225870,5.36112851,147.99,147.98,0.1]
[1751391228461,26.0,148.02,147.98,0.1]
[1751391228764,5.36112851,147.99,147.98,0.1]
[1751391232047,26.0,148.02,147.98,0.1]
[1751391232248,5.36112851,147.99,147.98,0.1]
[1751391233172,5.36112851,148.0,147.98,0.1]
[1751391233345,5.36112851,148.01,147.98,0.1]
[1751391233958,26.0,148.02,147.98,0.1]
[1751391233959,5.36112851,147.99,147.98,0.1]
[1751391236070,5.36112851,148.0,147.98,0.1]
[1751391237670,5.36112851,147.99,147.98,0.1]
[1751391241171,26.0,147.99,147.98,0.1]
[1751391241365,31.36112851,147.99,147.98,0.1]
[1751391248383,5.36112851,147.99,147.94,1.3584]
[1751391248606,26.0,148.0,147.94,1.3584]
[1751391248607,5.36112851,147.97,147.94,1.3584]
[1751391250087,5.36112851,147.97,147.93,5.36112851]
[1751391251789,5.36112851,147.97,147.94,0.1]
[1751391253170,26.0,148.0,147.94,0.1]
[1751391253171,5.36112851,147.96,147.94,0.1]
[1751391253370,5.36112851,147.95,147.94,0.1]
[1751391253988,5.36112851,147.96,147.94,0.1]
[1751391254284,5.36112851,147.97,147.94,0.1]
[1751391254686,26.0,147.99,147.94,0.1]
[1751391254687,5.36112851,147.98,147.94,0.1]
[1751391254987,5.36112851,147.98,147.94,5.46112851]
[1751391255284,5.36112851,147.98,147.94,0.1]
[1751391255487,8.81384373,147.98,147.94,0.1]
[1751391260284,5.36112851,147.96,147.94,0.1]
[1751391260495,5.36112851,147.95,147.94,0.1]
[1751391264680,29.31946979,147.98,147.94,0.1]
[1751391264880,5.36112851,147.95,147.94,0.1]
[1751391266182,5.36112851,147.96,147.94,0.1]
[1751391266384,29.31946979,147.98,147.94,0.1]
[1751391266698,34.6805983,147.98,147.94,0.1]
[1751391267197,34.6805983,147.98,147.94,5.46112851]
[1751391267701,26.0,147.98,147.94,5.46112851]
[1751391267902,5.47308313,148.01,147.94,5.46112851]
[1751391267903,5.36112851,147.99,147.94,5.46112851]
[1751391268099,31.36112851,147.99,147.94,5.46112851]
[1751391268394,5.36112851,147.98,147.94,5.46112851]
[1751391268699,5.56112851,147.98,147.94,5.46112851]
[1751391269585,0.2,147.98,147.94,5.46112851]
[1751391272579,5.56112851,147.98,147.94,5.46112851]
[1751391274698,5.56112851,147.98,147.94,0.1]
[1751391274889,5.56112851,147.98,147.94,5.46112851]
[1751391276983,5.56112851,147.98,147.94,0.1]
[1751391277887,5.56112851,147.98,147.94,5.46112851]
[1751391278096,0.2,147.98,147.94,5.46112851]
[1751391278292,0.2,147.98,147.95,5.36112851]
[1751391278891,0.2,147.98,147.94,5.60329008]
[1751391280499,0.2,147.98,147.96,5.36112851]
[1751391280888,0.2,147.98,147.97,5.36112851]
[1751391282194,0.2,147.98,147.95,5.36112851]
[1751391283109,0.2,147.98,147.96,5.36112851]
[1751391288698,0.2,147.98,147.94,0.52648471]
[1751391289021,0.2,147.98,147.96,5.36112851]
[1751391295511,0.2,147.98,147.95,5.36112851]
[1751391299725,0.2,147.98,147.96,5.36112851]
[1751391299924,0.2,147.98,147.97,5.78761322]
[1751391300223,0.2,147.98,147.97,7.37421322]
[1751391301811,0.2,147.98,147.97,26.02386208]
[1751391302013,0.2,147.98,147.97,37.83939059]
[1751391302326,0.2,148.04,147.97,37.83939059]
[1751391302327,0.2,148.04,148.02,19.07613357]
[1751391302544,0.2,148.04,148.03,24.29510051]
[1751391302834,0.2,148.04,148.03,0.42648471]
[1751391303046,0.2,148.04,148.03,5.78761322]
[1751391303335,0.2,148.04,148.02,5.36112851]
[1751391303513,0.2,148.04,148.01,32.80112851]
[1751391303917,0.2,148.04,148.01,27.44]
[1751391304124,0.2,148.04,148.0,5.50329008]
[1751391304707,0.2,148.04,148.02,5.36112851]
[1751391304909,0.2,148.04,148.03,5.36112851]
[1751391306158,0.2,148.04,148.02,5.36112851]
[1751391306314,5.56112851,148.04,147.98,18.933972]
[1751391306513,5.56112851,148.04,147.99,5.36112851]
[1751391306733,5.56112851,148.04,148.0,5.36112851]
[1751391308053,5.56112851,148.04,147.98,18.933972]
[1751391308054,5.56112851,148.04,147.99,5.36112851]